bitfinex/quotes_SOLUSD_20250922
["timestamp","ask_amount","ask_price","bid_price","bid_amount"]
[1758508104774,0.1,232.69,232.6,0.68]
[1758508105070,0.68,232.68,232.56,4.29982557]
[1758508105273,0.1,232.69,232.6,3.31666966]
[1758508105447,4.39764206,232.69,232.57,0.68]
[1758508105649,4.39764206,232.69,232.57,4.97964307]
[1758508105847,0.1,232.69,232.59,3.31666966]
[1758508106059,0.1,232.69,232.6,3.99666966]
[1758508106267,0.1,232.69,232.6,0.68]
[1758508106462,0.1,232.69,232.61,3.31666966]
[1758508106672,0.1,232.69,232.62,3.99666966]
[1758508107356,0.1,232.69,232.55,31.2]
[1758508107357,0.1,232.69,232.58,4.02666966]
[1758508107670,4.39766674,232.69,232.58,4.02666966]
[1758508108340,4.39766674,232.69,232.59,3.31666966]
[1758508108554,0.1,232.69,232.62,3.31666966]
[1758508108755,31.2,232.66,232.56,4.02666966]
[1758508109181,31.2,232.66,232.56,0.71]
[1758508109593,0.1,232.69,232.61,3.31666966]
[1758508109756,4.39764203,232.69,232.62,3.31666966]
[1758508110081,4.39764203,232.69,232.61,3.31666966]
[1758508110957,4.39764203,232.69,232.6,5.0090831]
[1758508111175,0.66,232.68,232.51,31.2]
[1758508111385,31.2,232.66,232.52,0.71]
[1758508111570,0.66,232.65,232.52,4.02666966]
[1758508111768,35.49848693,232.64,232.52,0.71]
[1758508112357,0.66,232.63,232.52,0.71]
[1758508112564,31.2,232.61,232.48,0.71]
[1758508112881,0.66,232.6,232.48,0.71]
[1758508113265,0.66,232.6,232.48,5.01127019]
[1758508113266,1.73669784,232.6,232.48,5.01127019]
[1758508113583,31.2,232.61,232.51,3.31666966]
[1758508113766,46.90665697,232.61,232.49,0.71]
[1758508113971,46.90665697,232.61,232.49,5.0111573]
[1758508114174,4.95905369,232.61,232.5,3.31666966]
[1758508114387,4.95905369,232.61,232.51,3.31666966]
[1758508114566,36.15905369,232.61,232.51,3.31666966]
[1758508115071,45.42,232.65,232.53,3.31666966]
[1758508115274,0.66,232.62,232.52,0.71]
[1758508115769,31.2,232.61,232.54,4.30033542]
[1758508116169,31.2,232.61,232.52,0.71]
[1758508116494,31.2,232.61,232.52,3.31666966]
[1758508116675,31.2,232.61,232.54,3.31666966]
[1758508116869,4.29861819,232.64,232.54,3.31666966]
[1758508117073,31.2,232.61,232.55,3.31666966]
[1758508117263,46.24,232.69,232.58,3.31666966]
[1758508117464,46.24,232.69,232.65,3.31666966]
[1758508117465,0.1,232.69,232.65,3.31666966]
[1758508117991,0.1,232.69,232.67,3.31666966]
[1758508118164,0.1,232.69,232.65,3.31666966]
[1758508118677,0.1,232.69,232.66,4.02666966]
[1758508118879,0.1,232.69,232.68,3.31666966]
[1758508119489,0.1,232.69,232.68,4.02666966]
[1758508119791,0.1,232.69,232.68,8.32441764]
[1758508119997,0.1,232.69,232.68,5.00774798]
[1758508120362,0.1,232.69,232.68,8.32441764]
[1758508120570,0.1,232.69,232.68,9.84101252]
[1758508121806,31.3,232.79,232.68,15.75211793]
[1758508121971,31.3,232.79,232.69,0.71]
[1758508122184,31.3,232.79,232.74,4.83326454]
[1758508122371,31.3,232.79,232.73,4.83326454]
[1758508122594,0.1,232.79,232.74,4.83326454]
[1758508122773,0.1,232.79,232.76,4.83326454]
[1758508123191,0.1,232.79,232.75,0.71]
[1758508123192,0.1,232.79,232.75,4.83326454]
[1758508123508,34.96,232.89,232.75,4.83326454]
[1758508123509,0.1,232.89,232.78,4.83326454]
[1758508123720,0.1,232.89,232.8,4.83326454]
[1758508123988,0.1,232.89,232.79,0.71]
[1758508123989,0.1,232.89,232.81,15.03371847]
[1758508124198,0.1,232.89,232.82,0.71]
[1758508124392,0.1,232.89,232.88,4.83326454]
[1758508124777,0.1,232.89,232.88,5.54326454]
[1758508125792,0.1,232.89,232.88,5.00405702]
[1758508126092,0.1,232.89,232.88,9.83732156]
[1758508126793,0.1,232.89,232.86,4.29438928]
[1758508127000,0.1,232.89,232.88,4.83326454]
[1758508127694,0.1,232.89,232.85,4.2945501]
[1758508127875,0.1,232.89,232.86,4.83326454]
[1758508128277,0.1,232.89,232.87,4.83326454]
[1758508128486,0.1,232.89,232.84,5.0047947]
[1758508128705,0.1,232.89,232.87,4.83326454]
[1758508128907,0.1,232.89,232.88,4.83326454]
[1758508129074,0.1,232.89,232.85,0.71]
[1758508129273,0.1,232.89,232.87,4.83326454]
[1758508129903,0.1,232.89,232.88,4.83326454]
[1758508130486,0.1,232.89,232.88,5.54326454]
[1758508131670,0.1,232.89,232.88,4.83326454]
[1758508131876,1e-08,232.89,232.88,9.83732156]
[1758508133105,1e-08,232.89,232.88,81.72405702]
[1758508133402,1e-08,232.89,232.88,86.55732156]
[1758508133614,1e-08,232.89,232.88,36.20405702]
[1758508133788,1e-08,232.89,232.88,41.03732156]
[1758508134720,1e-08,232.89,232.88,36.20405702]
[1758508134905,0.1,232.93,232.88,51.77246412]
[1758508135115,0.1,232.99,232.92,4.83326454]
[1758508135276,0.1,232.99,232.98,4.83326454]
[1758508135481,0.1,232.99,232.96,31.2]
[1758508135725,0.1,232.99,232.92,0.71]
[1758508135726,0.1,232.99,232.95,4.83326454]
[1758508136006,0.1,232.99,232.98,9.12547846]
[1758508136911,0.1,232.99,232.98,4.29221392]
[1758508137096,0.1,232.99,232.98,9.12547846]
[1758508137618,0.1,232.99,232.98,4.29221392]
[1758508137918,0.1,232.99,232.98,9.12547846]
[1758508138221,0.1,232.99,232.98,4.83326454]
[1758508139029,0.1,232.99,232.98,5.50326454]
[1758508139307,0.1,232.99,232.98,4.83326454]
[1758508139511,0.1,233.1,232.98,5.50326454]
[1758508139816,0.1,233.1,233.02,31.2]
[1758508140016,0.1,233.1,233.08,9.12363694]
[1758508140216,0.77,233.09,233.0,10.72931266]
[1758508140387,0.77,233.09,233.02,4.83326454]
[1758508140715,0.1,233.09,233.08,4.83326454]
[1758508140890,0.1,233.09,233.08,51.38326454]
[1758508141214,0.1,233.09,233.08,51.46326454]
[1758508141403,0.1,233.12,233.11,31.2]
[1758508141711,0.1,233.12,233.11,36.03326454]
[1758508141913,0.1,233.12,233.11,36.70326454]
[1758508142109,0.1,233.12,233.11,40.99308479]
[1758508142288,1e-08,233.12,233.11,40.99308479]
[1758508143015,1e-08,233.12,233.11,86.97308479]
[1758508143189,1e-08,233.13,233.11,91.80634933]
[1758508143384,1e-08,233.13,233.12,10.33652908]
[1758508143705,0.1,233.19,233.14,31.2]
[1758508143885,1e-08,233.15,233.14,36.03326454]
[1758508144085,0.1,233.24,233.18,31.2]
[1758508144324,0.1,233.24,233.22,4.83326454]
[1758508144689,0.1,233.24,233.22,5.50326454]
[1758508144918,0.1,233.24,233.22,4.83326454]
[1758508145226,0.1,233.24,233.22,50.95326454]
[1758508145526,0.1,233.24,233.22,50.93326454]
[1758508145690,0.77,233.23,233.18,31.2]
[1758508145894,0.1,233.23,233.15,15.68179498]
[1758508146116,0.67,233.22,233.2,4.83326454]
[1758508146300,0.1,233.23,233.15,31.2]
[1758508146500,0.1,233.23,233.09,12.71801011]
[1758508146501,0.67,233.21,233.13,46.12]
[1758508146716,0.67,233.2,233.11,4.2896886]
[1758508146918,0.67,233.19,233.12,46.12]
[1758508147117,0.67,233.19,233.12,50.95326454]
[1758508147319,0.67,233.19,233.12,4.83326454]
[1758508147534,0.67,233.18,233.02,0.67]
[1758508147698,0.67,233.18,233.06,4.83326454]
[1758508148032,0.67,233.17,233.08,4.83326454]
[1758508148316,4.28908428,233.15,233.04,46.16]
[1758508148500,4.28908428,233.15,233.04,4.83326454]
[1758508148501,31.2,233.12,233.04,4.83326454]
[1758508148700,0.67,233.11,233.03,4.83326454]
[1758508148903,0.67,233.11,233.04,4.83326454]
[1758508149101,0.67,233.1,233.01,0.1]
[1758508149398,0.67,233.1,233.02,4.83326454]
[1758508149607,31.2,233.12,233.01,0.1]
[1758508149608,0.67,233.09,233.01,0.1]
[1758508149819,0.67,233.09,233.01,4.93326454]
[1758508150015,0.67,233.09,233.01,0.1]
[1758508150524,0.67,233.09,233.02,4.83326454]
[1758508151229,31.2,233.12,233.06,4.83326454]
[1758508151526,0.67,233.13,233.09,4.83326454]
[1758508151693,0.67,233.16,233.1,4.83326454]
[1758508151888,0.67,233.16,233.09,4.83326454]
[1758508152122,0.67,233.16,233.06,46.14]
[1758508152420,0.67,233.16,233.07,4.29055648]
[1758508152620,0.67,233.2,233.08,0.68]
[1758508152799,0.67,233.2,233.14,4.83326454]
[1758508153794,0.67,233.2,233.1,4.96984809]
[1758508154122,0.67,233.2,233.13,4.83326454]
[1758508154319,0.67,233.19,233.02,0.68]
[1758508154509,0.67,233.19,233.06,4.83326454]
[1758508154703,0.67,233.18,233.1,4.83326454]
[1758508155022,0.67,233.18,233.09,4.83326454]
[1758508155222,0.67,233.17,233.07,4.83326454]
[1758508155409,0.67,233.16,233.08,4.83326454]
[1758508155812,4.95907168,233.16,233.08,9.12358842]
[1758508156624,4.28865828,233.18,233.1,4.83326454]
[1758508156796,4.28865828,233.18,233.08,4.97032388]
[1758508156995,4.95865828,233.18,233.1,4.83326454]
[1758508157196,4.95865828,233.18,233.11,4.83326454]
[1758508157497,0.67,233.18,233.08,15.69625489]
[1758508157817,4.28837858,233.19,233.12,9.12285807]
[1758508158021,0.67,233.21,233.15,4.83326454]
[1758508158022,4.95807956,233.21,233.15,4.83326454]
[1758508158319,0.1,233.23,233.16,4.83326454]
[1758508158532,0.1,233.23,233.14,0.68]
[1758508158816,0.1,233.23,233.18,4.83326454]
[1758508159395,0.77,233.23,233.14,0.68]
[1758508159613,0.1,233.23,233.17,4.83326454]
[1758508159815,31.2,233.21,233.15,4.83326454]
[1758508160025,0.67,233.2,233.09,0.68]
[1758508160318,31.2,233.19,233.1,4.83326454]
[1758508160496,31.2,233.19,233.11,4.83326454]
[1758508160695,31.2,233.19,233.1,4.83326454]
[1758508161315,4.28853246,233.18,233.1,9.12313503]
[1758508161512,0.67,233.17,233.06,4.83326454]
[1758508161713,0.67,233.17,233.05,0.68]
[1758508161714,0.67,233.16,233.05,9.12416685]
[1758508161925,0.67,233.15,233.02,0.68]
[1758508162302,0.67,233.15,233.03,4.83326454]
[1758508162522,0.67,233.15,233.04,4.83326454]
[1758508162727,0.67,233.15,233.02,15.70000577]
[1758508162922,31.2,233.18,233.02,15.70000577]
[1758508163123,0.67,233.14,233.04,4.83326454]
[1758508163325,4.28945223,233.13,233.05,4.29092469]
[1758508163904,4.28945223,233.13,233.03,4.29118425]
[1758508164105,4.28945223,233.13,233.03,9.12444879]
[1758508164335,4.28945223,233.13,233.04,4.83326454]
[1758508164538,4.28945223,233.13,233.04,0.68]
[1758508164702,4.28945223,233.13,233.04,5.51326454]
[1758508165215,31.87,233.14,233.05,4.29092469]
[1758508165730,0.67,233.15,233.06,0.68]
[1758508166134,31.2,233.13,233.06,0.68]
[1758508166621,0.67,233.12,233.03,0.68]
[1758508167432,4.28982025,233.11,233.03,0.68]
[1758508167919,0.67,233.12,233.03,4.97127118]
[1758508168122,0.67,233.12,233.03,0.68]
[1758508168940,4.95965905,233.12,233.03,4.97122642]
[1758508169109,31.2,233.13,233.04,0.7]
[1758508169307,35.48951125,233.13,233.04,0.7]
[1758508169506,0.69,233.12,233.01,0.1]
[1758508169808,31.2,233.1,233.01,0.1]
[1758508170012,34.70665487,233.09,233.01,0.1]
[1758508170335,31.2,233.06,233.01,0.1]
[1758508170632,0.69,233.09,233.01,4.39164362]
[1758508170943,31.2,233.1,233.01,4.39164362]
[1758508171114,2.81779963,233.09,233.01,4.39164362]
[1758508171313,31.2,233.1,233.01,19.95406141]
[1758508171523,31.2,233.1,233.02,0.7]
[1758508171719,4.28985778,233.11,233.02,5.53326454]
[1758508171923,3.50945309,233.12,233.02,5.53326454]
[1758508172126,4.28956319,233.13,233.01,15.12079687]
[1758508172127,35.48956319,233.13,233.03,5.53326454]
[1758508172318,31.2,233.1,233.03,5.53326454]
[1758508172838,3.51027089,233.09,233.01,0.1]
[1758508173715,31.2,233.05,233.01,0.1]
[1758508174124,0.69,233.04,233.01,0.1]
[1758508174318,31.2,233.05,233.01,0.1]
[1758508174520,0.69,233.04,233.01,0.1]
[1758508175707,31.2,233.05,233.01,0.1]
[1758508175937,31.89,233.05,233.01,0.1]
[1758508176116,36.1809449,233.05,233.01,0.1]
[1758508176843,0.69,233.04,233.01,0.1]
[1758508177308,31.2,233.02,233.01,0.1]
[1758508177515,36.18147712,233.02,233.01,0.1]
[1758508177830,39.00813752,233.02,233.01,0.1]
[1758508179811,84.32813752,233.02,233.01,0.1]
[1758508180720,84.30813752,233.02,233.01,0.1]
[1758508181416,36.18147712,233.02,233.01,0.1]
[1758508181745,50.24147712,233.02,233.01,0.1]
[1758508182319,31.2,232.99,232.91,0.1]
[1758508182636,2.8247293,232.98,232.91,0.1]
[1758508182835,3.5147293,232.98,232.91,0.1]
[1758508183627,31.2,232.94,232.91,0.1]
[1758508183826,31.2,232.92,232.91,0.1]
[1758508184325,15.02339356,232.97,232.91,0.8]
[1758508184326,31.2,232.94,232.91,0.8]
[1758508184537,80.61239816,232.97,232.91,0.8]
[1758508185432,35.49239816,232.97,232.91,0.8]
[1758508185647,80.53239816,232.97,232.91,0.8]
[1758508185947,132.2,232.97,232.92,3.30993233]
[1758508186145,132.2,232.97,232.93,0.7]
[1758508186350,132.2,232.97,232.94,0.7]
[1758508186845,31.2,232.99,232.94,0.7]
[1758508187425,4.98145278,233.03,232.95,0.7]
[1758508187633,31.2,232.99,232.95,0.7]
[1758508187830,44.98,233.03,232.96,0.7]
[1758508188027,31.2,233.04,232.96,0.7]
[1758508188349,15.70694769,233.07,232.96,0.7]
[1758508188350,31.2,233.02,232.96,0.7]
[1758508188548,44.98,233.05,232.96,4.00993233]
[1758508188740,31.2,233.02,232.96,4.00993233]
[1758508188934,31.2,233.02,232.91,0.8]
[1758508189133,0.69,233.01,232.91,5.09347992]
[1758508189336,0.69,233.01,232.92,0.7]
[1758508190262,4.29184549,233.0,232.93,4.29313527]
[1758508190927,0.69,233.01,232.93,4.29313527]
[1758508191230,4.29168404,233.01,232.93,4.29313527]
[1758508191636,31.2,232.99,232.94,0.7]
[1758508191838,31.2,232.99,232.95,0.7]
[1758508192026,31.2,232.99,232.96,0.7]
[1758508192228,31.2,233.0,232.96,0.7]
[1758508192441,31.2,233.0,232.96,4.99257851]
[1758508192654,4.29082098,233.06,232.97,0.7]
[1758508192847,49.13082098,233.06,232.97,0.7]
[1758508193054,31.2,233.03,232.97,0.7]
[1758508193760,31.2,233.03,232.97,4.99234065]
[1758508194056,35.49132012,233.03,232.97,4.99234065]
[1758508194356,31.2,233.03,232.97,4.99234065]
[1758508195952,4.98074928,233.06,232.97,4.99234065]
[1758508196154,31.2,233.04,232.97,15.72333605]
[1758508196354,31.2,233.04,232.98,0.7]
[1758508196660,31.89,233.04,232.97,4.29234065]
[1758508196846,31.2,233.04,232.97,4.29234065]
[1758508197034,31.2,233.04,232.98,0.69]
[1758508197839,31.2,233.04,232.98,4.98207652]
[1758508198240,0.71,233.03,232.91,0.79]
[1758508199465,4.29147712,233.02,232.92,4.29331959]
[1758508199849,5.00136173,233.03,232.93,0.69]
[1758508200762,31.2,232.99,232.91,0.1]
[1758508201165,31.91,232.99,232.91,0.1]
[1758508201358,4.29239816,232.97,232.91,0.1]
[1758508201551,132.2,232.96,232.91,0.1]
[1758508201752,132.91,232.96,232.91,0.1]
[1758508201955,0.71,232.95,232.91,0.1]
[1758508202147,0.71,232.94,232.91,0.1]
[1758508202545,132.2,232.96,232.92,0.69]
[1758508202864,0.71,232.95,232.91,0.1]
[1758508203368,132.2,232.96,232.92,0.69]
[1758508203545,132.2,232.96,232.93,0.69]
[1758508204047,132.2,232.96,232.91,4.39343222]
[1758508204252,31.2,233.0,232.92,0.69]
[1758508204456,31.2,233.0,232.92,3.99993233]
[1758508205467,31.2,233.0,232.92,4.98316649]
[1758508205677,31.2,233.0,232.93,0.69]
[1758508206176,35.49185744,233.0,232.93,0.69]
[1758508206479,31.2,232.99,232.93,0.69]
[1758508206648,0.71,233.01,232.93,0.69]
[1758508207043,31.2,233.02,232.94,3.30993233]
[1758508207273,31.2,233.02,232.95,0.69]
[1758508207464,31.2,233.02,232.96,4.29258241]
[1758508207843,31.2,233.03,232.97,3.99993233]
[1758508208057,0.71,233.05,232.97,0.69]
[1758508208274,31.2,233.03,232.97,0.69]
[1758508208648,0.71,233.02,232.92,4.9831489]
[1758508208863,0.71,233.01,232.91,0.1]
[1758508209148,31.2,232.97,232.91,0.1]
[1758508209348,4.29276668,232.95,232.91,0.1]
[1758508209786,35.49276668,232.95,232.91,0.1]
[1758508210072,0.67,232.94,232.91,0.1]
[1758508210374,0.67,232.93,232.91,0.1]
[1758508210960,35.49276668,232.95,232.91,0.1]
[1758508211274,0.67,232.94,232.91,0.1]
[1758508211450,0.67,232.93,232.91,0.1]
[1758508211650,0.67,232.92,232.91,0.1]
[1758508211868,31.2,232.91,232.87,0.2]
[1758508212058,0.67,232.9,232.87,0.2]
[1758508212465,0.67,232.89,232.87,0.2]
[1758508212862,0.67,232.88,232.87,0.2]
[1758508213669,36.16405702,232.88,232.87,0.2]
[1758508214470,4.29384122,232.9,232.87,0.2]
[1758508214653,31.2,232.9,232.87,0.2]
[1758508214868,31.2,232.89,232.87,0.2]
[1758508215474,4.96405702,232.88,232.87,0.2]
[1758508217483,36.16405702,232.88,232.87,0.2]
[1758508217703,38.99745742,232.88,232.87,1e-08]
[1758508219789,38.99745742,232.88,232.81,0.1]
[1758508219790,93.79259998,232.88,232.81,0.1]
[1758508219999,31.2,232.85,232.81,0.1]
[1758508220181,31.2,232.82,232.81,0.1]
[1758508220566,31.87,232.82,232.81,0.1]
[1758508220764,36.16516364,232.82,232.81,0.1]
[1758508221397,38.9919845,232.82,232.81,1e-08]
[1758508222891,35.49516364,232.82,232.81,1e-08]
[1758508223120,0.67,232.86,232.81,1e-08]
[1758508223278,48.21466088,232.85,232.81,1e-08]
[1758508223481,4.29466088,232.85,232.81,1e-08]
[1758508223698,31.2,232.83,232.81,1e-08]
[1758508224420,0.67,232.9,232.81,1e-08]
[1758508224704,31.2,232.84,232.81,1e-08]
[1758508224915,4.29497916,232.83,232.81,1e-08]
[1758508225076,31.2,232.84,232.81,1e-08]
[1758508225280,4.29442583,232.86,232.81,1e-08]
[1758508225477,31.2,232.84,232.81,0.67000001]
[1758508225684,31.2,232.84,232.81,1e-08]
[1758508226191,31.2,232.84,232.81,0.67000001]
[1758508226391,31.2,232.84,232.81,1e-08]
[1758508227000,31.2,232.83,232.81,1e-08]
[1758508227189,31.2,232.85,232.81,0.67000001]
[1758508227398,1.7223191,232.9,232.82,0.67]
[1758508227699,31.2,232.87,232.82,0.67]
[1758508227901,31.2,232.87,232.83,0.67]
[1758508228104,31.2,232.87,232.81,0.67000001]
[1758508228424,31.2,232.87,232.82,0.67]
[1758508228621,31.2,232.87,232.81,1e-08]
[1758508228622,132.87,232.86,232.81,1e-08]
[1758508228792,31.2,232.83,232.81,1e-08]
[1758508228982,35.4950627,232.83,232.81,1e-08]
[1758508229508,132.2,232.82,232.81,1e-08]
[1758508229715,132.87,232.82,232.81,1e-08]
[1758508230219,44.43,232.82,232.81,1e-08]
[1758508231287,4.2950627,232.83,232.81,1e-08]
[1758508231494,44.37,232.82,232.81,1e-08]
[1758508232086,75.55,232.82,232.81,1e-08]
[1758508232618,75.77,232.82,232.81,1e-08]
[1758508232987,34.68917245,232.82,232.81,1e-08]
[1758508233202,78.58840417,232.82,232.81,1e-08]
[1758508234420,78.58744462,232.82,232.81,1e-08]
[1758508234597,4.29534813,232.81,232.79,1e-08]
[1758508234803,7.1126568,232.81,232.79,1e-08]
[1758508235110,4.29608626,232.77,232.71,0.1]
[1758508235420,31.2,232.73,232.71,0.1]
[1758508235595,43.74,232.73,232.71,0.1]
[1758508235907,0.67,232.72,232.71,1e-08]
[1758508236496,0.67,232.72,232.69,0.2]
[1758508236497,31.2,232.7,232.69,1e-08]
[1758508236696,74.94,232.7,232.69,1e-08]
[1758508236915,75.61,232.7,232.69,1e-08]
[1758508237104,79.90737859,232.7,232.69,1e-08]
[1758508237422,82.71798542,232.7,232.69,1e-08]
[1758508237608,82.71798542,232.7,232.61,0.1]
[1758508237815,2.81060683,232.69,232.61,0.1]
[1758508238018,0.67,232.68,232.61,0.1]
[1758508238208,31.2,232.64,232.61,0.1]
[1758508238522,44.37,232.63,232.61,1e-08]
[1758508238728,31.2,232.6,232.51,0.1]
[1758508238896,31.2,232.56,232.51,0.1]
[1758508239096,35.50070531,232.52,232.51,0.1]
[1758508239309,4.30070531,232.52,232.51,0.1]
[1758508240914,79.38070531,232.52,232.51,0.1]
[1758508241192,35.50070531,232.52,232.51,0.1]
[1758508241417,31.2,232.52,232.51,0.77]
[1758508242206,31.2,232.52,232.51,0.1]
[1758508243204,35.50070531,232.52,232.51,0.1]
[1758508243925,31.2,232.53,232.51,0.77]
[1758508244111,0.67,232.63,232.52,0.67]
[1758508244423,0.67,232.63,232.51,0.1]
[1758508244424,4.84705432,232.6,232.51,0.1]
[1758508244622,31.2,232.56,232.51,0.1]
[1758508244832,75.1,232.56,232.51,0.1]
[1758508245200,15.05052676,232.55,232.51,0.1]
[1758508246725,31.2,232.52,232.51,0.1]
[1758508247027,4.3001505,232.55,232.51,0.1]
[1758508247205,35.5001505,232.55,232.51,0.1]
[1758508247620,4.29941098,232.59,232.52,0.67]
[1758508247941,31.2,232.55,232.52,0.67]
[1758508248240,31.2,232.55,232.53,0.67]
[1758508248538,31.2,232.55,232.51,0.1]
[1758508248749,31.2,232.55,232.52,0.67]
[1758508249036,31.2,232.55,232.51,0.1]
[1758508249530,31.2,232.53,232.51,0.1]
[1758508249699,31.2,232.53,232.51,0.77]
[1758508250118,31.2,232.55,232.51,0.77]
[1758508250707,4.3001039,232.56,232.52,0.67]
[1758508250913,31.2,232.53,232.51,0.1]
[1758508251447,36.17070531,232.52,232.51,0.1]
[1758508251622,35.50070531,232.52,232.51,0.1]
[1758508253338,31.2,232.52,232.51,0.1]
[1758508255015,31.87,232.52,232.51,0.1]
[1758508255534,35.50070531,232.52,232.51,0.1]
[1758508256418,31.2,232.52,232.51,0.1]
[1758508256816,43.5,232.56,232.51,0.77]
[1758508257041,47.7999656,232.56,232.52,0.67]
[1758508257215,31.2,232.53,232.52,0.67]
[1758508258117,35.50057346,232.53,232.51,0.1]
[1758508258312,35.50057346,232.53,232.51,0.77]
[1758508258535,31.2,232.53,232.52,0.67]
[1758508259443,78.91996558,232.57,232.51,0.1]
[1758508259622,89.66941735,232.57,232.51,0.1]
[1758508260446,0.7,232.56,232.51,0.1]
[1758508260645,0.7,232.55,232.51,0.1]
[1758508260850,31.2,232.52,232.51,0.1]
[1758508261550,35.50070531,232.52,232.51,0.1]
[1758508262397,43.34,232.55,232.51,0.1]
[1758508262530,31.2,232.52,232.51,0.1]
[1758508262939,31.2,232.53,232.51,0.1]
[1758508263552,4.30070531,232.52,232.51,0.1]
[1758508263943,5.00070531,232.52,232.51,0.1]
[1758508264137,4.30070531,232.52,232.51,0.1]
[1758508264555,36.20070531,232.52,232.51,0.1]
[1758508264757,78.84070531,232.52,232.51,0.1]
[1758508265058,31.2,232.52,232.51,0.1]
[1758508265267,2.448514,232.54,232.51,0.1]
[1758508265268,2.448514,232.54,232.51,0.77]
[1758508265434,6.74889332,232.54,232.52,0.67]
[1758508265744,31.2,232.52,232.51,0.1]
[1758508266150,31.2,232.52,232.51,0.77]
[1758508266543,31.2,232.52,232.51,0.1]
[1758508266942,46.25121788,232.54,232.51,0.1]
[1758508267142,46.25121788,232.54,232.51,0.77]
[1758508267143,35.50037932,232.54,232.51,0.77]
[1758508267571,46.95121788,232.54,232.51,0.1]
[1758508267863,46.25121788,232.54,232.51,0.1]
[1758508268072,35.50037932,232.54,232.51,0.1]
[1758508268442,31.2,232.54,232.52,0.67]
[1758508268652,35.50015361,232.55,232.51,0.1]
[1758508268852,31.2,232.55,232.52,0.67]
[1758508269070,31.2,232.55,232.53,0.67]
[1758508269267,43.28,232.6,232.54,0.67]
[1758508269570,47.57935428,232.6,232.54,0.67]
[1758508269772,31.2,232.58,232.54,0.67]
[1758508269953,31.2,232.58,232.51,0.1]
[1758508270151,31.2,232.57,232.52,0.67]
[1758508270357,15.04741962,232.6,232.53,0.66]
[1758508270771,31.2,232.57,232.53,0.66]
[1758508271146,31.2,232.57,232.51,0.76]
[1758508271466,31.2,232.57,232.51,0.1]
[1758508271774,4.30070531,232.52,232.51,0.1]
[1758508272476,4.98070531,232.52,232.51,0.1]
[1758508272672,48.36070531,232.52,232.51,1e-08]
[1758508272853,48.36070531,232.52,232.47,0.2]
[1758508273045,31.2,232.49,232.37,0.66]
[1758508273255,31.2,232.46,232.37,0.66]
[1758508273452,31.88,232.46,232.37,0.66]
[1758508273669,35.50181536,232.46,232.37,0.66]
[1758508273879,78.92181536,232.46,232.4,0.66]
[1758508274096,4.30181536,232.46,232.4,0.66]
[1758508274386,35.50181536,232.46,232.4,0.66]
[1758508274543,4.30181536,232.46,232.4,0.66]
[1758508274849,4.30181536,232.46,232.32,13.00992397]
[1758508274850,4.30181536,232.46,232.32,2.2492069]
[1758508275050,7.79904703,232.46,232.36,0.66]
[1758508275272,31.2,232.44,232.36,0.66]